bitfinex/quotes_ETHUSD_20220310
["timestamp","ask_amount","ask_price","bid_price","bid_amount"]
[1646937211015,1.40041957,2595.0,2594.9,0.29848467]
[1646937211215,2.10539051,2595.0,2594.9,0.29848467]
[1646937211420,1.40041957,2595.0,2594.9,0.29848467]
[1646937217304,2.10539051,2595.0,2594.9,0.29848467]
[1646937218111,1.78621957,2595.0,2594.9,0.29848467]
[1646937220265,2.49412092,2595.0,2594.9,0.29848467]
[1646937220848,2.49412092,2595.0,2594.9,0.29731299]
[1646937222452,1.78621957,2595.0,2594.9,0.29731299]
[1646937222651,2.49435109,2595.0,2594.9,0.29731299]
[1646937223452,1.78621957,2595.0,2594.9,0.29731299]
[1646937224318,2.49429388,2595.0,2594.9,0.29731299]
[1646937224713,2.10849388,2595.0,2594.9,0.29731299]
[1646937224915,1.40041957,2595.0,2594.9,0.47612597]
[1646937234207,1.40041957,2595.0,2594.9,0.55286025]
[1646937234806,2.35831592,2595.6,2594.9,0.55286025]
[1646937234807,0.00319668,2595.6,2595.0,0.08807966]
[1646937235007,0.00319668,2595.6,2595.3,1.18777794]
[1646937235262,1.39725364,2595.7,2595.4,0.17881298]
[1646937235452,1.40047596,2595.6,2595.4,0.25145439]
[1646937235652,0.00322232,2595.6,2595.5,0.17881298]
[1646937236454,1.39696296,2595.6,2595.5,0.17881298]
[1646937236653,0.00322269,2595.7,2595.5,0.17881298]
[1646937237054,0.00322269,2595.7,2595.5,0.26128936]
[1646937237258,1.40018565,2595.7,2595.6,0.17881298]
[1646937237654,1.69696296,2595.7,2595.6,0.17881298]
[1646937237854,1.70019508,2595.7,2595.6,0.17881298]
[1646937238856,1.69696296,2595.7,2595.6,0.17881298]
[1646937239112,1.39696296,2595.7,2595.6,0.64181298]
[1646937240008,0.3853,2596.3,2595.6,0.64181298]
[1646937240211,1.40764584,2596.2,2596.1,1.22823972]
[1646937240407,1.40764584,2596.2,2595.7,0.24802176]
[1646937240408,1.69380311,2595.9,2595.8,0.463]
[1646937240608,3.08854266,2595.9,2595.8,0.6408772]
[1646937240809,1.69380311,2595.9,2595.8,0.6408772]
[1646937241107,1.16458833,2595.9,2595.8,0.6408772]
[1646937241308,1.16458833,2595.9,2595.8,4.1408772]
[1646937242008,1.16458833,2595.9,2595.8,5.09201295]
[1646937242416,1.16458833,2595.9,2595.8,5.0919631]
[1646937243258,1.16458833,2595.9,2595.8,0.64082735]
[1646937243454,2.85926082,2595.9,2595.8,0.17782735]
[1646937243955,2.85926082,2595.9,2595.5,0.25643113]
[1646937244159,1.39398881,2595.8,2595.6,0.17782735]
[1646937244560,2.35748151,2595.8,2595.6,0.17782735]
[1646937244762,0.9634927,2595.8,2595.6,0.17782735]
[1646937245261,0.9667194,2595.8,2595.6,0.17782735]
[1646937246062,0.9634927,2595.8,2595.6,0.17782735]
[1646937246265,0.9667194,2595.8,2595.6,0.17782735]
[1646937246705,1.38325369,2595.7,2595.6,0.17782735]
[1646937247106,1.38325369,2595.7,2595.4,0.13819997]
[1646937247107,1.68325369,2595.7,2595.4,0.13819997]
[1646937247405,1.38325369,2595.6,2595.1,11.58566269]
[1646937247608,1.68325369,2595.6,2595.2,0.18771504]
[1646937247806,1.38325369,2595.5,2595.2,0.18771504]
[1646937248807,3.31059519,2595.5,2595.2,0.18771504]
[1646937249007,1.2636697,2595.4,2595.2,0.18771504]
[1646937253160,1.76754789,2595.3,2594.9,0.29731299]
[1646937253359,2.34555159,2595.2,2595.0,0.18770198]
[1646937253556,0.9638037,2595.2,2595.0,0.18770198]
[1646937253758,1.38180794,2595.1,2595.0,0.18770198]
[1646937254826,1.38181441,2595.1,2595.0,0.18770198]
[1646937255224,1.38201714,2595.1,2595.0,0.18770198]
[1646937255429,1.38201714,2595.1,2594.9,0.29731299]
[1646937256227,1.5841037,2595.2,2595.0,0.18780554]
[1646937256427,1.2638037,2595.2,2595.0,0.18780554]
[1646937256626,1.2638037,2595.2,2595.0,0.27726214]
[1646937256832,1.2638037,2595.2,2595.1,0.18780554]
[1646937257026,2.64566147,2595.2,2595.1,0.18780554]
[1646937258159,2.64535283,2595.2,2595.1,0.18780554]
[1646937258756,1.2638037,2595.2,2595.1,0.18780554]
[1646937258957,1.1459,2595.4,2595.1,0.18780554]
[1646937258958,0.9636063,2595.4,2595.1,0.18780554]
[1646937259162,1.93048885,2595.6,2595.2,0.18780554]
[1646937259163,0.00322645,2595.6,2595.2,0.18780554]
[1646937259361,1.16458833,2595.9,2595.3,0.463]
[1646937259362,1.38170609,2595.8,2595.3,0.463]
[1646937259560,1.38170609,2595.8,2595.4,0.26981544]
[1646937259762,0.00322646,2595.6,2595.5,0.18780554]
[1646937260463,1.38170609,2595.8,2595.5,0.18780554]
[1646937260464,0.9634842,2595.7,2595.5,0.18780554]
[1646937260668,1.38170609,2595.6,2595.1,0.08171544]
[1646937260865,0.33095733,2595.4,2595.2,0.18764604]
[1646937261261,0.63095733,2595.4,2595.2,0.18764604]
[1646937261511,0.63095733,2595.4,2595.2,0.27446219]
[1646937261710,0.33095733,2595.4,2595.3,0.18764604]
[1646937263511,0.63095733,2595.4,2595.3,0.18764604]
[1646937264715,0.33095733,2595.4,2595.3,0.18764604]
[1646937265119,0.33095733,2595.4,2595.3,0.73183605]
[1646937265368,1.46458833,2595.9,2595.3,0.73183605]
[1646937265568,11.8897298,2596.1,2595.4,0.98928654]
[1646937265569,0.00322661,2595.6,2595.4,0.98928654]
[1646937265771,0.00322661,2595.6,2595.5,5.36899215]
[1646937265969,0.00322661,2595.6,2595.5,6.08163137]
[1646937266166,0.00322661,2595.6,2595.5,5.36899215]
[1646937266365,0.00322661,2595.6,2595.5,8.07916937]
[1646937266567,0.00145811,2596.8,2595.6,0.08078315]
[1646937266768,0.01290439,2596.1,2595.7,0.463]
[1646937266967,0.01290439,2596.1,2595.8,1.26512434]
[1646937267169,0.01290439,2596.1,2595.9,0.72315252]
[1646937267369,0.01290439,2596.1,2596.0,0.27558068]
[1646937267567,0.01290439,2596.1,2596.0,0.73858068]
[1646937267771,0.00145811,2597.0,2596.5,1.1913572]
[1646937267970,0.90057431,2597.1,2596.6,0.08059611]
[1646937267971,1.54683487,2597.1,2596.6,0.08059611]
[1646937268171,1.35433487,2597.0,2596.6,0.08059611]
[1646937268369,1.35433487,2597.0,2596.4,0.07681272]
[1646937269007,1.65433487,2597.0,2596.4,0.07681272]
[1646937269212,0.00323967,2596.8,2596.4,0.07681272]
[1646937269413,0.00323967,2596.8,2596.5,0.96302]
[1646937270011,1.35433487,2596.9,2596.5,0.96302]
[1646937270212,1.35433487,2596.9,2596.6,0.08879121]
[1646937270413,0.0033983,2596.8,2596.6,0.08879121]
[1646937271217,1.35433487,2596.9,2596.6,0.08879121]
[1646937271613,0.00339828,2596.8,2596.6,0.08879121]
[1646937272513,1.35433487,2596.9,2596.6,0.08879121]
[1646937272773,0.00339092,2596.8,2596.6,0.08879121]
[1646937273771,1.35433487,2596.9,2596.7,1.50694491]
[1646937273964,0.01283866,2597.2,2596.9,0.08555018]
[1646937274170,0.01283866,2597.2,2597.0,0.463]
[1646937274468,0.01283866,2597.2,2597.0,0.53405579]
[1646937274868,1.1652,2597.6,2597.0,0.53405579]
[1646937275069,1.35302362,2597.5,2597.0,0.53405579]
[1646937275269,0.00320999,2597.2,2597.0,0.463]
[1646937275469,0.00320999,2597.2,2597.1,0.96276]
[1646937276169,1.35302362,2597.5,2597.1,0.96276]
[1646937276374,0.00321713,2597.3,2597.1,0.96276]
[1646937277209,0.9627648,2597.8,2597.2,0.08418079]
[1646937277210,1.35133483,2597.5,2597.2,0.08418079]
[1646937277411,1.35133483,2597.4,2597.2,0.08418079]
[1646937277610,0.00322947,2597.3,2597.2,0.08418079]
[1646937278011,0.00322947,2597.3,2597.2,1.02723436]
[1646937278212,0.00322947,2597.3,2597.2,4.99023436]
[1646937278413,0.00322947,2597.3,2597.2,1.49023436]
[1646937278612,1.35082382,2597.6,2597.3,0.96266]
[1646937278812,0.00221362,2597.4,2597.3,1.50495056]
[1646937279422,0.00221362,2597.4,2597.3,6.00495056]
[1646937279624,0.00145811,2598.0,2597.3,6.00495056]
[1646937279821,2.85400152,2598.1,2597.4,3.57836045]
[1646937280019,0.0022245,2597.5,2597.3,1.0]
[1646937280272,0.0022245,2597.5,2597.4,0.463]
[1646937280561,0.0022245,2597.5,2597.4,1.463]
[1646937280758,1.35054341,2597.8,2597.3,3.26999554]
[1646937280959,1.50345811,2598.1,2597.3,0.463]
[1646937281259,0.00363899,2597.6,2597.3,3.963]
[1646937281462,0.00363899,2597.6,2597.4,0.96261]
[1646937281767,0.00363899,2597.6,2597.5,1.463]
[1646937281958,1.50345811,2598.1,2597.5,1.463]
[1646937282159,1.31589825,2598.0,2597.5,1.463]
[1646937282360,0.01455369,2598.0,2597.9,1.0]
[1646937283360,0.3,2598.1,2597.9,1.0]
[1646937283560,0.00363875,2598.1,2597.9,1.0]
[1646937284418,0.0193577,2598.2,2597.7,1.42555]
[1646937284711,0.00343655,2598.1,2597.7,1.42555]
[1646937284911,0.00343655,2598.1,2597.8,1.0]
[1646937285114,0.00343655,2598.1,2597.9,1.0]
[1646937285314,0.00343655,2598.1,2597.7,1.42555]
[1646937285516,0.00343655,2598.1,2597.7,0.463]
[1646937285715,1.42135563,2598.2,2597.4,1.92513]
[1646937286117,0.00343659,2598.0,2597.3,0.463]
[1646937286319,0.00343659,2598.0,2597.0,0.96282]
[1646937286516,1.39997478,2597.9,2596.8,1.0]
[1646937286715,1.3487444,2597.5,2596.8,1.0]
[1646937286918,0.6858,2597.5,2596.8,1.0]
[1646937287114,0.6858,2597.5,2597.0,0.99446682]
[1646937287316,0.68923686,2597.5,2597.0,0.99446682]
[1646937287515,0.30343686,2597.5,2597.0,0.99446682]
[1646937287961,0.00343686,2597.5,2597.0,1.95730682]
[1646937288259,0.04593402,2597.8,2597.0,1.95730682]
[1646937288461,0.00345983,2597.4,2597.0,1.95730682]
[1646937288665,0.00345983,2597.4,2596.6,1.92579]
[1646937288863,0.00345983,2597.4,2596.4,0.15805045]
[1646937288864,0.05119828,2597.3,2596.4,0.15805045]
[1646937289065,0.05119828,2597.3,2596.5,0.96302]
[1646937289764,0.00346003,2597.0,2596.5,0.96302]
[1646937290164,0.00346003,2597.0,2596.5,1.03551574]
[1646937290565,0.05119828,2597.3,2596.5,1.03551574]
[1646937290764,0.00346008,2596.9,2596.5,1.03551574]
[1646937291618,0.00346008,2596.9,2596.1,12.5]
[1646937291818,0.04602708,2596.8,2596.1,12.5]
[1646937292016,0.3858,2596.7,2596.1,12.5]
[1646937292221,0.05021343,2596.7,2596.1,12.5]
[1646937292618,0.05021343,2596.7,2596.2,0.91414174]
[1646937293017,0.3,2596.9,2596.2,0.91414174]
[1646937293018,0.34944875,2596.9,2596.2,0.91414174]
[1646937293217,0.00358553,2596.5,2596.2,0.91414174]
[1646937294018,0.73524875,2596.9,2596.2,0.91414174]
[1646937294423,0.00358555,2596.5,2596.2,0.91414174]
[1646937294921,0.00358555,2596.5,2596.1,12.5]
[1646937295365,0.3858,2596.9,2596.2,27.0]
[1646937295564,17.34289542,2598.8,2596.2,27.0]
[1646937295565,0.20311974,2597.9,2596.3,29.0872644]
[1646937295870,2.99439787,2598.4,2596.8,5.86893201]
[1646937295871,1.43432202,2598.4,2596.8,5.86893201]
[1646937296067,0.0215676,2598.8,2598.3,5.784]
[1646937296267,0.00271331,2599.2,2598.6,0.40210986]
[1646937296473,0.00271331,2599.2,2598.7,10.284]
[1646937296664,1.31374014,2599.4,2598.9,11.49]
[1646937296864,2.662e-05,2599.2,2599.1,0.01215584]
[1646937297064,2.662e-05,2599.2,2599.1,3.97515584]
[1646937297271,0.01085324,2599.6,2599.1,12.68276584]
[1646937297466,0.01085324,2599.6,2599.5,5.784]
[1646937297467,0.02234728,2599.6,2599.5,5.784]
[1646937297664,0.02234728,2599.6,2599.5,7.3775]
[1646937297864,0.02234728,2599.6,2599.5,8.5698]
[1646937298067,1e-08,2599.8,2599.5,8.5698]
[1646937298265,1e-08,2599.8,2599.6,0.1923]
[1646937298465,1e-08,2599.8,2599.7,2.38655]
[1646937301017,0.00915264,2600.3,2599.7,2.38655]
[1646937301018,0.02614769,2599.9,2599.7,2.38655]
[1646937302870,0.02995071,2599.9,2599.7,2.38655]
[1646937303068,0.02995071,2599.9,2599.7,2.57885]
[1646937303271,0.02995071,2599.9,2599.7,3.57885]
[1646937303668,0.02614769,2599.9,2599.7,3.57885]
[1646937303869,0.00915264,2600.3,2599.7,10.49983973]
[1646937304071,0.00915264,2600.3,2599.8,1.9231939]
[1646937304072,0.00380302,2599.9,2599.8,1.9231939]
[1646937304272,0.00380302,2599.9,2599.8,3.5784939]
[1646937304478,0.02436244,2600.3,2600.0,1.92314]
[1646937304675,0.02436244,2600.3,2600.1,0.463]
[1646937304874,0.00915264,2600.3,2600.1,0.463]
[1646937305273,0.00915264,2600.3,2600.2,1.0]
[1646937305478,0.00915264,2600.3,2600.2,1.463]
[1646937307110,0.00915264,2600.3,2599.6,1.92393]
[1646937307411,0.00915264,2600.3,2599.8,0.070012]
[1646937307613,0.00915264,2600.3,2599.9,0.08178422]
[1646937307810,0.30915264,2600.3,2599.9,0.08178422]
[1646937308010,0.00915264,2600.3,2599.9,0.54478422]
[1646937308212,0.00915264,2600.3,2600.0,0.07182189]
[1646937308410,0.00915264,2600.3,2600.1,0.463]
[1646937308610,0.00915264,2600.3,2600.2,0.07381781]
[1646937308809,0.01046828,2600.6,2600.2,0.53681781]
[1646937309010,0.0417563,2600.6,2600.3,0.08835058]
[1646937309215,0.0417563,2600.6,2600.3,1.51315058]
[1646937309514,0.0417563,2600.6,2600.3,0.463]
[1646937309515,1.09471571,2600.5,2600.3,0.463]
[1646937309914,1.39471571,2600.5,2600.3,0.463]
[1646937310119,1.09471571,2600.5,2600.3,0.463]
[1646937310360,0.0303498,2600.6,2600.3,0.463]
[1646937310960,0.0303498,2600.6,2600.3,0.53940138]
[1646937310961,0.0265471,2600.6,2600.3,0.53940138]
[1646937311261,0.0303498,2600.6,2600.3,0.53940138]
[1646937311463,0.4161498,2600.6,2600.0,0.08594905]
[1646937311660,0.4161498,2600.6,2600.1,0.96187]
[1646937311661,0.7161498,2600.6,2600.1,0.96187]
[1646937311860,0.7161498,2600.6,2600.2,0.08956774]
[1646937312061,0.3303498,2600.6,2600.2,0.08956774]
[1646937312260,0.3265471,2600.6,2600.2,0.08956774]
[1646937312462,0.0036744,2600.5,2600.2,0.08956774]
[1646937312861,0.0036744,2600.5,2600.2,1.05136774]
[1646937313061,0.0036744,2600.5,2600.3,1.0356746]
[1646937313262,0.0036744,2600.5,2600.4,0.5478325]
[1646937313461,0.00824182,2600.6,2600.5,0.08607706]
[1646937313663,0.0265471,2600.6,2600.5,0.54907706]
[1646937314519,0.03100002,2600.6,2600.5,0.54907706]
[1646937315324,0.03100002,2600.6,2599.9,2.01369536]
[1646937315521,0.03100002,2600.6,2600.0,0.08097441]
[1646937315718,1.35205524,2600.5,2600.0,0.08097441]
[1646937316320,0.00354814,2600.4,2600.0,0.08097441]
[1646937316520,0.02185342,2600.4,2600.0,0.08097441]
[1646937317122,0.01830528,2600.4,2600.0,0.08097441]
[1646937317323,0.00354816,2600.3,2600.0,0.08097441]
[1646937317625,0.02185344,2600.3,2600.0,0.08097441]
[1646937317870,12.1558,2600.2,2599.5,0.08137721]
[1646937318266,12.4558,2600.2,2599.5,0.08137721]
[1646937318666,1.18472154,2599.7,2599.0,0.07204504]
[1646937319473,1.18472154,2599.7,2599.2,1.92415]
[1646937319669,1.18472154,2599.7,2599.3,0.07768408]
[1646937319870,1.18472154,2599.7,2599.4,0.96209]
[1646937320074,1.18472154,2599.7,2599.5,0.0687814]
[1646937320273,1.48472154,2599.7,2599.3,0.08617056]
[1646937320476,1.48472154,2599.7,2599.1,0.153872]
[1646937320673,1.87052154,2599.7,2599.1,0.153872]
[1646937321073,0.08373876,2599.0,2598.9,0.08347169]
[1646937321273,0.08373876,2599.0,2598.1,3.89656269]
[1646937321515,0.08373876,2599.0,2598.2,0.07675668]
[1646937321711,0.11852876,2599.0,2598.2,0.07675668]
[1646937321914,0.11852876,2599.0,2597.9,0.08241982]
[1646937322111,0.3858,2598.6,2597.9,0.08241982]
[1646937322311,0.3858,2598.6,2598.0,0.96258]
[1646937322312,0.6858,2598.6,2598.0,0.96258]
[1646937322512,0.6858,2598.6,2598.1,0.07985922]
[1646937323120,0.6858,2598.6,2597.9,0.08210808]
[1646937323317,1.2273337,2598.3,2597.9,0.08210808]
[1646937323617,1.2273337,2598.3,2598.1,0.08576788]
[1646937323817,1.5273337,2598.3,2598.1,0.08576788]
[1646937324017,1.5273337,2598.3,2597.9,0.0905507]
[1646937324220,1.2273337,2598.3,2597.9,0.0905507]
[1646937324420,1.9131337,2598.3,2597.7,0.08147316]
[1646937325270,0.92607866,2597.9,2597.7,0.08147316]
[1646937325459,0.92607866,2597.9,2597.3,1.92544]
[1646937325661,0.92607866,2597.9,2597.4,0.07369048]
[1646937325862,1.22607866,2597.9,2597.4,0.07369048]
[1646937326061,1.71717866,2597.9,2597.4,0.07369048]
[1646937326562,1.71717866,2597.9,2597.1,0.00327988]
[1646937326763,1.71054126,2597.9,2597.2,0.0774365]
[1646937327363,1.71054126,2597.9,2597.3,0.96282]
[1646937327563,1.71054126,2597.9,2597.4,0.08937134]
[1646937328764,0.4911,2597.9,2597.4,0.08937134]
[1646937329017,0.38725085,2598.4,2597.5,0.96273]
[1646937329215,0.3,2598.4,2597.6,0.08764816]
[1646937329616,0.00145085,2598.6,2597.6,0.08764816]
[1646937329820,12.10414,2598.7,2597.6,0.08764816]
[1646937329821,12.48994,2598.7,2597.6,0.08764816]
[1646937330017,1.09927642,2598.3,2597.8,0.96263]
[1646937330217,1.39927642,2598.3,2597.9,0.07147526]
[1646937330416,1.39927642,2598.3,2597.6,0.07228792]
[1646937331217,0.3,2598.3,2597.7,0.08153834]
[1646937331619,0.68725085,2598.6,2597.7,0.08153834]
[1646937331820,0.6858,2598.6,2597.5,0.22955634]
[1646937332018,0.03416,2598.5,2597.5,0.22955634]
[1646937332218,0.03416,2598.5,2597.5,0.07559434]
[1646937332424,1.1698684,2598.3,2597.5,0.07559434]
[1646937332863,1.4698684,2598.3,2597.5,0.07559434]
[1646937333967,1.37481986,2597.9,2597.3,0.08473838]
[1646937334366,1.37481986,2597.9,2597.4,0.96276]
[1646937334566,1.37481986,2597.9,2597.5,0.07737031]
[1646937335167,1.37481986,2597.9,2597.1,0.00327611]
[1646937335369,1.37481986,2597.9,2597.1,0.08988566]
[1646937335370,1.69771986,2597.9,2597.1,0.08988566]
[1646937335571,1.69771986,2597.9,2597.1,0.00327589]
[1646937335769,11.77,2597.8,2597.1,0.00327589]
[1646937335972,12.1558,2597.8,2597.1,0.00327589]
[1646937336170,0.3858,2597.8,2597.1,0.00327589]
[1646937336368,0.3858,2597.8,2596.7,1.03720671]
[1646937336610,1.01015085,2597.9,2596.8,0.11980036]
[1646937336810,0.3,2597.4,2597.1,0.00327568]
[1646937337209,0.03567085,2598.1,2597.1,0.00327568]
[1646937337412,3.28335085,2598.2,2597.2,0.463]
[1646937337610,0.3,2598.2,2597.3,0.088082]
[1646937337812,0.91515802,2598.0,2597.4,0.463]
[1646937338013,0.91515802,2598.0,2597.5,0.08236808]
[1646937338212,1.21515802,2598.0,2597.5,0.08236808]
[1646937339217,0.42150085,2598.6,2597.6,0.463]
[1646937339218,0.03570085,2598.6,2597.6,0.463]
[1646937339420,1.23265085,2598.7,2597.7,3.58741555]
[1646937339617,0.08518961,2599.0,2597.8,0.5323805]
[1646937339818,0.08518961,2599.0,2597.9,0.07198561]
[1646937340018,0.08518961,2599.0,2598.0,0.463]
[1646937340019,0.47098961,2599.0,2598.0,0.463]
[1646937340273,0.47098961,2599.0,2598.1,0.463]
[1646937340274,0.88967952,2598.8,2598.1,0.463]
[1646937340463,0.88967952,2598.8,2598.2,1.50760658]
[1646937340663,0.88967952,2598.8,2598.3,0.07763552]
[1646937341465,1.18967952,2598.8,2598.3,0.07763552]
[1646937341664,0.08373876,2599.0,2598.3,0.07763552]
[1646937341866,0.08373876,2599.0,2598.5,0.08125611]
[1646937342064,0.08373876,2599.0,2598.6,0.463]
[1646937342264,0.08373876,2599.0,2598.7,0.07549209]
[1646937343667,0.08373876,2599.0,2598.5,0.07621626]
[1646937343869,0.11517439,2598.6,2598.5,0.07621626]
[1646937344615,0.11517439,2598.6,2598.2,0.463]
[1646937344816,0.11517439,2598.6,2598.3,0.07242282]
[1646937345216,0.11517439,2598.6,2598.1,0.07182834]
[1646937346117,0.11517439,2598.6,2598.1,0.06510144]
[1646937346520,0.11517439,2598.6,2598.1,1.02757634]
[1646937346718,0.11517439,2598.6,2598.1,0.9624749]
[1646937346917,0.11517439,2598.6,2598.3,0.07630216]
[1646937347770,0.11517439,2598.6,2598.5,0.08981374]
[1646937348364,0.11517439,2598.6,2598.5,0.55281374]
[1646937349569,0.11517439,2598.6,2598.5,5.97963253]
[1646937349772,0.08373876,2599.0,2598.5,5.97963253]
[1646937349773,0.08373876,2599.0,2598.9,0.84722351]
[1646937349967,0.08373876,2599.0,2598.9,0.463]
[1646937351169,0.08373876,2599.0,2598.9,2.38746]
[1646937358464,0.08373876,2599.0,2598.9,2.77147219]
[1646937358868,0.08373876,2599.0,2598.9,3.38746]
[1646937360137,0.08373876,2599.0,2598.9,3.7719087]
[1646937361139,0.0148056,2599.5,2598.9,3.9642087]
[1646937361140,0.01335475,2599.5,2598.9,3.9642087]
[1646937361340,0.01335475,2599.5,2599.0,3.2706887]
[1646937361541,0.01335475,2599.5,2599.1,2.7715287]
[1646937361740,0.04064882,2600.0,2599.2,0.3844487]
[1646937361741,0.03731085,2600.0,2599.2,0.3844487]
[1646937361940,2.09402401,2599.9,2599.2,0.3844487]
[1646937362143,0.03806453,2600.0,2599.2,0.3844487]
[1646937362144,0.87664761,2599.5,2599.2,0.3844487]
[1646937362440,0.87664761,2599.5,2599.1,4.3111503]
[1646937362639,0.87664761,2599.5,2599.3,0.96203]
[1646937363666,0.01409475,2599.8,2599.3,0.96203]
[1646937363866,1.18271249,2599.7,2599.3,0.96203]
[1646937364266,1.18271249,2599.7,2599.2,0.47267137]
[1646937364471,1.18271249,2599.6,2599.2,0.47267137]
[1646937364670,1.18271249,2599.5,2599.2,0.47267137]
[1646937364867,0.00513841,2600.0,2599.2,0.47267137]
[1646937365067,1.04121942,2599.6,2599.3,0.96203]
[1646937366267,1.15581924,2599.5,2599.3,0.96203]
[1646937366514,0.00513846,2600.0,2599.3,0.96203]
[1646937366515,0.00145085,2600.0,2599.3,0.96203]
[1646937366713,1.12097931,2600.1,2599.3,0.96203]
[1646937366714,0.41996,2600.1,2599.3,0.96203]
[1646937366915,0.0184377,2600.0,2599.5,0.9621037]
[1646937367714,0.41996,2600.1,2599.5,0.9621037]
[1646937367915,0.99648044,2599.9,2599.5,0.9621037]
[1646937368515,0.99648044,2599.9,2599.5,0.99484932]
[1646937369721,1.38228044,2599.9,2599.5,0.99484932]
[1646937369926,0.99648044,2599.9,2599.5,0.99484932]
[1646937370122,0.99648044,2599.9,2599.6,0.07249768]
[1646937372665,0.03416,2600.2,2599.6,0.07249768]
[1646937372864,1.17325613,2600.3,2599.6,8.18361448]
[1646937372865,0.00327189,2600.0,2599.6,8.18361448]
[1646937373063,0.00327189,2600.0,2599.8,0.08828548]
[1646937373265,0.00327189,2600.0,2599.9,0.463]
[1646937373468,0.03139164,2600.3,2599.9,0.463]
[1646937373768,1.1976484,2600.1,2600.0,0.96175]
[1646937374012,1.22950068,2600.2,2600.0,0.96175]
[1646937374216,1.22950068,2600.2,2600.0,1.9235088]
[1646937374416,1.22950068,2600.2,2600.0,0.9617588]
[1646937374616,13.38530068,2600.2,2600.0,0.9617588]
[1646937374817,13.38530068,2600.2,2599.8,0.03276025]
[1646937375022,14.08631999,2600.2,2599.8,0.03276025]
[1646937375216,12.1558,2600.0,2599.8,0.03276025]
[1646937375419,12.85681931,2600.0,2599.8,0.03276025]
[1646937375917,12.1558,2600.0,2599.8,0.03276025]
[1646937376115,12.4558,2600.0,2599.8,0.03276025]
[1646937376517,1.93051999,2600.2,2599.8,0.03276025]
[1646937376718,1.93051999,2600.2,2599.8,0.99474025]
[1646937376719,0.00331602,2600.1,2599.8,0.99474025]
[1646937377862,0.00331607,2600.1,2599.8,0.99474025]
[1646937378664,1.22950068,2600.2,2599.8,0.99474025]
[1646937378865,1.22950068,2600.2,2599.8,0.03276025]
[1646937379067,0.00330657,2600.1,2599.8,0.03276025]
[1646937379868,1.93051999,2600.2,2599.8,0.03276025]
[1646937380068,0.00330657,2600.1,2599.8,0.03276025]
[1646937380671,11.77330657,2600.1,2599.8,0.03276025]
[1646937380870,12.47101931,2600.0,2599.8,0.03276025]
[1646937381069,11.77,2600.0,2599.8,0.03276025]
[1646937382332,0.3858,2600.1,2599.8,0.03276025]
[1646937382631,0.38911615,2600.1,2599.8,0.03276025]
[1646937383439,0.3858,2600.1,2599.8,0.03276025]
[1646937383838,0.3891162,2600.1,2599.8,0.03276025]
[1646937384037,0.3891162,2600.1,2599.8,0.1202339]
[1646937384440,0.05369686,2600.0,2599.6,1.33149488]
[1646937384638,0.05369686,2600.0,2599.9,0.0153597]
[1646937385663,0.0033162,2600.1,2599.9,0.0153597]
[1646937385866,1.22950068,2600.2,2599.9,0.008602]
[1646937386065,0.01830528,2600.3,2600.0,0.071441]
[1646937386664,1.12137,2600.2,2600.0,0.071441]
[1646937387065,1.12137,2600.2,2600.0,1.995001]
[1646937387265,1.12137,2600.2,2600.1,0.07968629]
[1646937388265,2.07288505,2600.2,2600.1,0.07968629]
[1646937388665,1.12137,2600.2,2600.1,0.07968629]
[1646937388866,0.01830528,2600.3,2600.1,0.07968629]
[1646937389118,0.01830528,2600.3,2600.2,0.96169]
[1646937389319,0.01830528,2600.3,2600.2,1.53969]
[1646937389518,0.03661056,2600.3,2600.2,1.53969]
[1646937389720,0.03661056,2600.3,2600.2,6.347968]
[1646937389919,0.00386156,2600.4,2600.2,6.155768]
[1646937390825,0.97295875,2600.9,2600.3,0.96165]
[1646937391020,0.00386154,2600.4,2600.3,0.96165]
[1646937391220,0.00386154,2600.4,2600.2,7.693268]
[1646937392021,0.02538948,2600.6,2600.3,3.8467113]
[1646937392022,0.73501496,2600.6,2600.3,3.8467113]
[1646937392423,0.70962548,2600.5,2600.3,3.8467113]
[1646937393067,0.70962548,2600.4,2600.3,2.8850313]
[1646937393268,3.5,2600.4,2600.3,2.8850313]
[1646937393666,0.96968669,2600.6,2600.3,2.8850313]
[1646937393866,4.44429721,2600.5,2600.3,2.92448124]
[1646937394069,0.94429721,2600.5,2600.3,2.92448124]
[1646937394269,3.5,2600.4,2600.3,2.92448124]
[1646937394474,4.44429721,2600.4,2600.3,2.92448124]
[1646937394672,4.44429721,2600.4,2600.3,2.92834311]
[1646937394673,0.94429721,2600.4,2600.3,2.92834311]
[1646937395469,4.44429721,2600.4,2600.3,2.92448124]
[1646937395670,4.44429721,2600.4,2600.3,0.02652003]
[1646937395871,27.6558,2600.3,2600.2,0.0038619]
[1646937396074,29.19460773,2600.3,2600.2,6.19e-05]
[1646937396274,12.1565381,2600.1,2599.5,3.847335]
[1646937396524,12.1558,2599.6,2599.4,0.9623612]
[1646937396721,15.69758063,2599.5,2599.4,0.9623612]
[1646937396922,0.05276801,2599.4,2599.1,1.9247224]
[1646937397124,12.53200088,2599.4,2599.1,1.9247224]
[1646937397322,12.53200088,2599.4,2598.7,0.96235]
[1646937397523,1.06255451,2599.3,2598.7,0.96235]
[1646937397923,1.06255451,2599.3,2598.9,1.9247265]
[1646937398123,1.06255451,2599.3,2598.9,1.92608494]
[1646937398522,3.5,2599.2,2598.9,1.92608494]
[1646937399227,3.5,2599.2,2598.9,1.9247265]
[1646937399428,15.27,2599.2,2598.9,1.92839041]
[1646937399628,3.5,2599.2,2598.9,1.92839041]
[1646937400028,15.27,2599.2,2598.9,1.92839041]
[1646937400465,3.5,2599.2,2598.9,1.9247265]
[1646937401665,3.5,2599.2,2598.7,1.9247531]
[1646937401666,15.97923287,2599.2,2598.7,1.9247531]
[1646937402065,0.70923287,2599.1,2598.7,1.9247531]
[1646937402265,15.97923287,2599.2,2598.7,1.9247531]
[1646937402866,15.27,2599.2,2598.7,1.9247531]
[1646937404322,15.27,2599.2,2598.8,0.00385973]
[1646937404725,15.27,2599.2,2599.1,0.03479161]
[1646937408668,15.30413,2599.2,2599.1,0.03479161]
[1646937408869,16.3980648,2599.2,2599.1,0.03479161]
[1646937409273,16.6980648,2599.2,2599.1,0.03479161]
[1646937409473,4.5939348,2599.2,2599.1,0.01210623]
[1646937409674,1.0939348,2599.2,2599.1,0.01210623]
[1646937410073,1.08368424,2599.2,2599.1,0.01210623]
[1646937411175,4.58368424,2599.2,2599.1,0.01210623]
[1646937412122,4.48751638,2599.2,2599.1,0.01210623]
[1646937412525,0.98751638,2599.2,2599.1,0.01210623]
[1646937413123,0.98751638,2599.2,2599.1,0.09994391]
[1646937413325,0.70923287,2599.7,2599.1,1.06212441]
[1646937413527,0.70923287,2599.8,2599.3,0.0827411]
[1646937413825,0.70923287,2599.8,2599.1,0.01210623]